bitfinex/quotes_SOLUSD_20240818
["timestamp","ask_amount","ask_price","bid_price","bid_amount"]
[1723963762448,0.12549,141.87,141.83,6.20365179]
[1723963762650,0.12549,141.87,141.84,6.20365179]
[1723963762851,0.12549,141.87,141.82,6.20365179]
[1723963763147,0.12549,141.87,141.83,6.20365179]
[1723963763443,0.12549,141.87,141.84,6.20365179]
[1723963763649,0.12549,141.87,141.82,6.20365179]
[1723963763853,6.3617,141.88,141.83,6.20365179]
[1723963764052,6.3617,141.88,141.84,6.20365179]
[1723963764262,6.3617,141.88,141.83,6.20365179]
[1723963764426,6.3617,141.88,141.84,6.20365179]
[1723963764625,6.3617,141.88,141.82,9.44]
[1723963764924,6.3617,141.88,141.83,6.20067435]
[1723963765124,0.12549,141.87,141.84,6.20067435]
[1723963765333,0.12549,141.87,141.83,6.20067435]
[1723963767533,0.12549,141.87,141.82,9.44]
[1723963767743,0.12549,141.87,141.83,6.19987878]
[1723963768647,0.12549,141.87,141.82,6.19987878]
[1723963768859,0.50196,141.87,141.82,6.19987878]
[1723963769754,0.50196,141.87,141.81,20.0]
[1723963770060,0.12549,141.87,141.81,26.20217238]
[1723963770265,0.12549,141.87,141.82,1.41007472]
[1723963771040,0.12549,141.87,141.82,10.85007472]
[1723963771243,0.12549,141.87,141.82,9.44]
[1723963773145,6.3617,141.88,141.82,9.44]
[1723963779237,0.25098,141.87,141.8,15.63856591]
[1723963779459,0.25098,141.87,141.81,20.0]
[1723963781771,0.12549,141.87,141.81,20.0]
[1723963782070,0.25098,141.87,141.81,20.0]
[1723963791617,0.25098,141.87,141.81,26.19905905]
[1723963791897,0.12549,141.85,141.81,20.0]
[1723963792099,0.12549,141.85,141.79,9.44]
[1723963792100,0.12549,141.85,141.8,26.19905905]
[1723963792483,0.12549,141.85,141.8,26.19993125]
[1723963793406,0.12549,141.85,141.8,26.20004935]
[1723963794076,15.9966,141.86,141.81,9.44]
[1723963794275,15.9966,141.86,141.81,15.64004935]
[1723963796601,15.9966,141.86,141.82,6.20004935]
[1723963797484,0.12549,141.85,141.81,6.20004935]
[1723963797804,0.12549,141.85,141.77,22.1226]
[1723963797805,0.12549,141.85,141.78,15.64004935]
[1723963797978,0.25098,141.85,141.79,26.20004935]
[1723963798181,0.25098,141.85,141.8,6.20004935]
[1723963798390,0.25098,141.85,141.81,6.20004935]
[1723963798707,0.25098,141.85,141.82,6.20004935]
[1723963798876,0.25098,141.85,141.8,6.20004935]
[1723963799195,0.25098,141.85,141.81,6.20004935]
[1723963799399,0.25098,141.85,141.82,6.20004935]
[1723963799599,0.25098,141.85,141.8,6.20004935]
[1723963799898,0.25098,141.85,141.79,20.0]
[1723963799899,0.25098,141.85,141.81,6.19883804]
[1723963800070,0.25098,141.85,141.82,6.19883804]
[1723963800415,0.12549,141.83,141.8,6.19883804]
[1723963800711,0.12549,141.83,141.81,6.19883804]
[1723963800895,0.12549,141.83,141.79,6.20037424]
[1723963801073,0.12549,141.83,141.8,6.20037424]
[1723963801275,0.12549,141.83,141.78,9.44]
[1723963801276,0.12549,141.83,141.81,6.20037424]
[1723963801494,0.12549,141.83,141.78,9.44]
[1723963801700,0.25098,141.83,141.79,6.20066445]
[1723963801906,0.25098,141.83,141.8,6.20066445]
[1723963802078,0.25098,141.83,141.81,6.20066445]
[1723963802397,0.25098,141.83,141.82,6.20074755]
[1723963802598,0.37647,141.83,141.79,6.20074755]
[1723963802900,0.25098,141.83,141.8,6.20074755]
[1723963803198,0.25098,141.83,141.81,6.20074755]
[1723963803400,0.25098,141.83,141.82,6.20070779]
[1723963803606,0.37647,141.83,141.82,6.20070779]
[1723963804472,0.37647,141.83,141.78,9.44]
[1723963804684,0.37647,141.83,141.82,6.20072701]
[1723963804892,0.37647,141.83,141.78,9.44]
[1723963805108,0.37647,141.83,141.79,6.20067895]
[1723963805308,0.37647,141.83,141.8,6.20067895]
[1723963805470,0.37647,141.83,141.81,6.20067895]
[1723963805675,0.37647,141.83,141.82,6.20067895]
[1723963806111,0.37647,141.83,141.82,6.20073158]
[1723963806298,0.37647,141.83,141.78,6.20073158]
[1723963806600,0.37647,141.83,141.79,6.20073158]
[1723963806803,0.37647,141.83,141.8,6.20073158]
[1723963807003,0.25098,141.83,141.81,6.20073158]
[1723963807205,0.25098,141.83,141.82,6.20073158]
[1723963807206,0.12549,141.83,141.82,6.20073158]
[1723963807412,0.12549,141.83,141.78,6.20073158]
[1723963807589,0.12549,141.83,141.79,6.20073158]
[1723963807791,0.12549,141.83,141.8,6.20073158]
[1723963808109,0.12549,141.83,141.81,6.20073158]
[1723963808310,0.12549,141.83,141.82,6.20073158]
[1723963808605,0.12549,141.83,141.78,6.20073158]
[1723963808805,0.12549,141.83,141.79,6.20073158]
[1723963809004,0.12549,141.83,141.77,9.44]
[1723963809229,0.12549,141.83,141.78,6.20101093]
[1723963809391,0.12549,141.83,141.79,6.20101093]
[1723963809589,0.12549,141.83,141.8,6.20101093]
[1723963809912,0.12549,141.83,141.77,9.44]
[1723963809913,0.12549,141.83,141.81,6.20101093]
[1723963810208,0.12549,141.83,141.77,9.44]
[1723963810411,0.12549,141.83,141.78,6.200855]
[1723963810711,0.12549,141.83,141.79,6.200855]
[1723963810891,0.12549,141.83,141.8,6.200855]
[1723963811210,0.12549,141.83,141.81,6.200855]
[1723963811382,0.12549,141.83,141.77,9.44]
[1723963811589,0.12549,141.83,141.78,6.20106205]
[1723963811798,0.12549,141.83,141.79,6.20106205]
[1723963811989,0.12549,141.83,141.77,9.44]
[1723963811990,0.12549,141.83,141.8,6.20106205]
[1723963812308,0.12549,141.83,141.81,6.20106205]
[1723963812518,0.12549,141.83,141.77,9.44]
[1723963812818,0.12549,141.83,141.78,6.20187233]
[1723963813014,0.12549,141.83,141.77,9.44]
[1723963813015,0.12549,141.83,141.79,6.20187233]
[1723963813177,0.12549,141.83,141.8,6.20188063]
[1723963813380,0.12549,141.83,141.81,6.20188063]
[1723963813579,0.12549,141.83,141.77,9.44]
[1723963813781,0.12549,141.83,141.78,6.20143362]
[1723963813981,0.12549,141.83,141.79,6.20143362]
[1723963814190,0.12549,141.83,141.8,6.20143362]
[1723963814518,0.12549,141.83,141.81,6.20143362]
[1723963814703,0.12549,141.83,141.77,9.44]
[1723963814902,0.12549,141.83,141.78,6.20149744]
[1723963815106,0.12549,141.83,141.79,6.20149744]
[1723963815415,0.12549,141.83,141.8,6.20149744]
[1723963815591,0.12549,141.83,141.77,9.44]
[1723963815592,0.12549,141.83,141.81,6.20149744]
[1723963815798,0.12549,141.83,141.77,9.44]
[1723963816019,0.12549,141.83,141.78,6.20085693]
[1723963816195,0.12549,141.83,141.79,6.20085693]
[1723963816396,0.12549,141.83,141.8,6.20085693]
[1723963816709,0.12549,141.83,141.81,6.20085693]
[1723963816906,0.12549,141.83,141.77,9.44]
[1723963817106,0.12549,141.83,141.78,6.20068601]
[1723963817416,0.12549,141.83,141.79,6.20068601]
[1723963817629,0.12549,141.83,141.8,6.20068134]
[1723963817794,6.3788,141.84,141.81,6.20068134]
[1723963817995,15.9966,141.86,141.82,6.1991296]
[1723963818210,15.9966,141.86,141.83,6.19680852]
[1723963818508,15.9966,141.86,141.84,6.19681768]
[1723963818704,15.9966,141.86,141.83,6.19680852]
[1723963818904,15.9966,141.86,141.84,6.19663339]
[1723963819202,15.9966,141.86,141.85,6.19663339]
[1723963819398,15.9966,141.86,141.84,6.19663339]
[1723963819616,15.9966,141.86,141.85,6.19663339]
[1723963819804,15.9966,141.86,141.83,15.63680852]
[1723963819805,15.9966,141.86,141.84,6.19663339]
[1723963820008,6.3212,141.88,141.85,6.19663339]
[1723963820228,6.3212,141.88,141.84,6.19663339]
[1723963820397,6.3212,141.88,141.85,6.19663339]
[1723963820596,6.3212,141.88,141.84,6.19663339]
[1723963820811,6.3212,141.88,141.85,6.19663339]
[1723963821005,6.3212,141.88,141.84,6.19663339]
[1723963821194,6.3212,141.88,141.85,6.19663339]
[1723963821393,6.3212,141.88,141.84,6.19663339]
[1723963821627,6.3212,141.88,141.85,6.19663339]
[1723963821834,6.3212,141.88,141.84,6.1961325]
[1723963822003,6.3212,141.88,141.85,6.1961325]
[1723963822199,6.3212,141.88,141.84,6.1961325]
[1723963822391,6.3212,141.88,141.83,15.63680852]
[1723963822392,6.3212,141.88,141.85,6.1961325]
[1723963822619,6.3212,141.88,141.84,6.1961325]
[1723963822922,6.3212,141.88,141.85,6.1961325]
[1723963823236,6.3212,141.88,141.84,6.1961325]
[1723963823421,6.3212,141.88,141.85,6.1961325]
[1723963823726,6.3212,141.88,141.84,6.1961325]
[1723963823906,6.3212,141.88,141.85,6.1961325]
[1723963824090,6.3212,141.88,141.84,6.1961325]
[1723963824295,6.3212,141.88,141.83,15.63680852]
[1723963824493,6.3212,141.88,141.84,6.19614778]
[1723963824695,6.3212,141.88,141.83,15.63680852]
[1723963824928,6.3212,141.88,141.84,6.19617254]
[1723963825220,6.3212,141.88,141.83,15.63680852]
[1723963825428,6.3212,141.88,141.84,6.19617523]
[1723963825633,6.3212,141.88,141.83,15.63680852]
[1723963825821,6.3212,141.88,141.84,6.19619173]
[1723963826021,6.3212,141.88,141.83,9.44]
[1723963826224,6.3212,141.88,141.84,6.19615603]
[1723963826422,6.3212,141.88,141.83,9.44]
[1723963826622,6.3212,141.88,141.84,6.19613444]
[1723963826816,6.3212,141.88,141.85,6.19613444]
[1723963827136,15.66469,141.89,141.84,6.19613444]
[1723963827305,15.66469,141.89,141.85,6.19613444]
[1723963827822,15.66469,141.89,141.84,6.19613444]
[1723963828116,15.66469,141.89,141.85,6.19613444]
[1723963828302,15.66469,141.89,141.84,9.44]
[1723963828502,15.66469,141.89,141.85,6.19613444]
[1723963829415,15.66469,141.89,141.84,9.44]
[1723963830332,15.66469,141.89,141.82,15.63612233]
[1723963830508,15.66469,141.89,141.83,6.19612233]
[1723963830714,15.66469,141.89,141.84,6.19612233]
[1723963831025,15.66469,141.89,141.82,9.44]
[1723963831320,15.66469,141.89,141.83,12.39183802]
[1723963831526,15.66469,141.89,141.83,6.19590838]
[1723963831833,15.66469,141.89,141.84,6.1959025]
[1723963834432,15.66469,141.89,141.83,6.19590838]
[1723963834433,0.12549,141.88,141.83,12.39181088]
[1723963834621,0.12549,141.88,141.83,6.19590838]
[1723963834825,0.12549,141.88,141.83,12.39181088]
[1723963835122,0.12549,141.88,141.83,6.19590838]
[1723963835345,0.12549,141.88,141.83,12.39181088]
[1723963835526,0.12549,141.88,141.83,6.19590838]
[1723963835822,0.12549,141.88,141.83,6.1959025]
[1723963836028,0.12549,141.88,141.82,6.1959025]
[1723963836223,0.12549,141.88,141.83,6.1959025]
[1723963836435,0.12549,141.88,141.82,6.1959025]
[1723963836731,0.12549,141.87,141.83,6.1959025]
[1723963836925,0.12549,141.87,141.82,6.1959025]
[1723963837245,0.12549,141.87,141.83,6.1959025]
[1723963837527,0.12549,141.87,141.82,6.1959025]
[1723963837732,0.12549,141.87,141.83,6.1959025]
[1723963837908,0.12549,141.87,141.82,6.1959025]
[1723963838109,0.12549,141.87,141.83,6.1959025]
[1723963838320,0.12549,141.87,141.82,6.1959025]
[1723963838616,0.12549,141.87,141.83,6.1959025]
[1723963838822,0.12549,141.87,141.82,6.1959025]
[1723963839023,0.12549,141.87,141.83,6.1959025]
[1723963839206,0.12549,141.87,141.82,6.1959025]
[1723963839402,0.12549,141.87,141.83,6.1959025]
[1723963839606,0.12549,141.87,141.82,6.1959025]
[1723963839833,0.12549,141.87,141.83,6.1959025]
[1723963840129,0.12549,141.87,141.82,6.1959025]
[1723963840347,0.12549,141.87,141.83,6.1959025]
[1723963840534,0.12549,141.87,141.81,9.44]
[1723963840838,0.12549,141.87,141.82,12.38845831]
[1723963841007,0.12549,141.87,141.83,6.19423979]
[1723963844409,0.25098,141.87,141.83,6.19423979]
[1723963844822,0.25098,141.87,141.82,6.19421852]
[1723963844823,0.12549,141.85,141.82,6.19421852]
[1723963845013,0.12549,141.85,141.82,12.38845831]
[1723963845231,0.25098,141.85,141.82,6.19421852]
[1723963845911,0.25098,141.85,141.79,6.19423979]
[1723963846133,0.25098,141.85,141.78,9.44]
[1723963846134,0.25098,141.85,141.8,6.19423979]
[1723963846327,0.12549,141.85,141.81,6.19423979]
[1723963846540,0.12549,141.87,141.82,15.63423979]
[1723963846710,0.25098,141.87,141.82,9.44]
[1723963846912,0.25098,141.87,141.83,6.19423979]
[1723963847923,0.25098,141.87,141.82,9.44]
[1723963848113,0.25098,141.87,141.83,6.19423979]
[1723963851536,6.2686,141.88,141.84,6.19423979]
[1723963854237,6.2686,141.88,141.84,6.19282448]
[1723963854440,6.2686,141.88,141.83,1.40993155]
[1723963854746,6.2686,141.88,141.84,6.19264719]
[1723963854917,6.2686,141.88,141.83,1.40993155]
[1723963855241,6.2686,141.88,141.84,6.19267346]
[1723963855539,6.2686,141.88,141.85,6.19268876]
[1723963855744,6.2686,141.88,141.84,6.19268876]
[1723963856041,6.2686,141.88,141.83,1.40993155]
[1723963856238,27.7719,141.92,141.84,15.6328444]
[1723963856426,27.7719,141.92,141.85,7.60250612]
[1723963856627,27.7719,141.92,141.86,6.1928444]
[1723963856931,22.8395,141.92,141.86,6.1928444]
[1723963857617,0.12549,141.91,141.86,6.1928444]
[1723963857946,0.25098,141.91,141.86,6.1928444]
[1723963858127,0.25098,141.91,141.86,15.6328444]
[1723963858325,0.25098,141.91,141.86,9.44]
[1723963858529,0.25098,141.91,141.86,15.6307522]
[1723963858734,22.8395,141.92,141.88,9.44]
[1723963858921,21.17,141.99,141.88,9.44]
[1723963858922,27.7708,141.95,141.88,9.44]
[1723963859334,27.7708,141.95,141.88,15.62777545]
[1723963859927,27.7708,141.95,141.88,9.44]
[1723963860122,0.12549,141.94,141.88,9.44]
[1723963860328,22.8395,141.95,141.89,6.18732222]
[1723963861645,0.12549,141.94,141.88,9.44]
[1723963861845,12.3244,142.0,141.83,1.40934033]
[1723963861846,16.3955,141.98,141.92,9.44]
[1723963862246,16.3955,141.98,141.93,1.4090466]
[1723963863432,16.3955,141.98,141.92,9.44]
[1723963865137,16.3955,141.98,141.9,6.18748682]
[1723963865138,0.12549,141.97,141.9,6.18748682]
[1723963865431,0.37647,141.97,141.89,9.44]
[1723963865634,16.3955,141.98,141.9,20.0]
[1723963865851,16.3955,141.98,141.9,20.12549]
[1723963866260,16.3955,141.98,141.91,20.0]
[1723963866478,16.3955,141.98,141.92,9.44]
[1723963871460,0.12549,141.97,141.89,20.0]
[1723963871673,0.37647,141.97,141.91,9.44]
[1723963871967,0.25098,141.97,141.91,9.44]
[1723963872141,0.12549,141.97,141.91,9.44]
[1723963872456,0.37647,141.97,141.91,9.44]
[1723963873752,0.37647,141.97,141.88,20.0]
[1723963874066,0.37647,141.97,141.91,9.44]
[1723963874274,0.25098,141.97,141.91,9.44]
[1723963874473,0.12549,141.97,141.91,9.44]
[1723963874851,0.12549,141.97,141.92,1.4090215]
[1723963875369,0.12549,141.97,141.91,9.44]
[1723963875666,0.12549,141.97,141.92,1.40902822]
[1723963875862,0.12549,141.97,141.91,9.44]
[1723963876243,0.12549,141.97,141.92,1.40901826]
[1723963877571,0.12549,141.97,141.91,9.44]
[1723963879868,0.37647,141.97,141.91,9.44]
[1723963884581,16.3955,141.98,141.92,1.40905002]
[1723963884766,16.3955,141.98,141.93,9.44]
[1723963885451,16.3955,141.98,141.91,9.44]
[1723963891551,16.3955,141.98,141.93,9.44]
[1723963891756,16.3955,141.98,141.94,1.40881796]
[1723963892156,16.3955,141.98,141.95,9.44]
[1723963892363,6.444,141.99,141.97,9.44]
[1723963892757,16.2118,142.02,141.97,9.44]
[1723963894487,0.12549,142.01,141.95,9.44]
[1723963905391,0.12549,142.01,141.95,15.62152179]
[1723963905599,0.12549,142.01,141.95,9.44]
[1723963906982,0.12549,142.01,141.95,15.62152179]
[1723963907188,0.12549,142.01,141.95,9.44]
[1723963908386,15.7577,142.0,141.92,9.44]
[1723963908588,15.7577,142.0,141.94,6.18600553]
[1723963908589,16.2118,141.98,141.94,6.18600553]
[1723963908814,16.2118,141.98,141.93,6.18600553]
[1723963909295,16.2118,141.98,141.92,9.44]
[1723963909613,16.2118,141.98,141.93,20.0]
[1723963909793,16.2118,141.98,141.93,26.18927434]
[1723963911007,16.2118,141.98,141.94,7.59817304]
[1723963911210,16.2118,141.98,141.94,15.62927434]
[1723963912208,16.2118,141.98,141.94,15.62759838]
[1723963914921,6.3177,142.0,141.95,1.40870736]
[1723963915438,6.3177,142.0,141.95,7.59442641]
[1723963915716,6.3177,142.0,141.94,9.44]
[1723963916505,6.3177,142.0,141.94,15.62623217]
[1723963917307,6.3177,142.0,141.94,9.44]
[1723963921208,6.3177,142.0,141.95,6.18587063]
[1723963921920,6.3177,142.0,141.94,9.44]
[1723963922133,6.3177,142.0,141.96,9.44]
[1723963923000,6.3177,142.0,141.97,1.40847766]
[1723963924311,16.0818,142.01,141.98,9.44]
[1723963924623,21.5215,142.04,141.98,9.44]
[1723963925128,21.5215,142.04,141.99,1.40828035]
[1723963925913,21.5215,142.04,142.0,9.44]
[1723963929137,0.12549,142.07,142.0,9.44]
[1723963929324,0.12549,142.07,142.02,9.44]
[1723963931141,21.5215,142.08,142.02,9.44]
[1723963934841,21.5215,142.08,141.98,15.773]
[1723963934842,21.5215,142.08,142.04,9.44]
[1723963935422,6.5121,142.08,142.04,9.44]
[1723963936237,6.5121,142.08,142.0,0.12549]
[1723963936439,6.5121,142.08,142.03,9.44]
[1723963937826,6.5121,142.08,142.02,9.44]
[1723963940745,6.5121,142.08,141.98,15.773]
[1723963940746,16.0847,142.06,141.98,15.773]
[1723963940929,16.0847,142.06,141.96,9.44]
[1723963940930,0.37647,142.05,141.96,9.44]
[1723963941132,0.12549,142.05,141.96,9.44]
[1723963941527,0.25098,142.05,141.96,9.44]
[1723963942252,0.25098,142.05,141.97,20.0]
[1723963943974,0.12549,142.03,141.97,20.0]
[1723963944135,0.12549,142.03,141.95,29.44]
[1723963944331,0.12549,142.03,141.97,9.44]
[1723963944552,6.2467,142.04,141.97,9.44]
[1723963948951,6.2467,142.04,141.99,9.44]
[1723963950469,6.2467,142.04,142.01,9.44]
[1723963951460,6.2467,142.04,141.99,9.44]
[1723963964266,6.2467,142.04,141.98,6.18354655]
[1723963965351,0.12549,142.03,141.98,6.18354655]
[1723963965549,0.12549,142.03,141.97,9.44]
[1723963965550,15.2756,142.02,141.96,6.18451601]
[1723963965870,0.12549,142.01,141.94,9.44]
[1723963966074,0.12549,142.01,141.95,6.18451601]
[1723963966267,15.2756,142.02,141.96,9.44]
[1723963968564,15.2756,142.02,141.96,15.62451601]
[1723963968771,15.2756,142.02,141.96,9.44]
[1723963969464,15.2756,142.02,141.96,15.62668541]
[1723963969770,15.2756,142.02,141.96,9.44]
[1723963969972,15.2756,142.02,141.9,423.79488447]
[1723963969973,15.2756,142.02,141.98,9.44]
[1723963973357,15.2756,142.02,141.99,1.40825374]
[1723963973784,6.2467,142.04,142.0,9.44]
[1723963976577,15.51,142.06,142.02,9.44]
[1723963978863,0.12549,142.05,142.0,9.44]
[1723963979385,15.51,142.06,142.0,9.44]
[1723963982883,0.12549,142.05,141.98,9.44]
[1723963983089,0.12549,142.05,141.99,6.17984362]
[1723963984171,0.12549,142.05,141.98,9.44]
[1723963985678,0.12549,142.05,141.98,15.61919461]
[1723963985985,0.25098,142.05,141.98,9.44]
[1723963986700,0.25098,142.05,141.98,15.61919461]
[1723963987003,0.25098,142.05,141.98,9.44]
[1723963990591,15.51,142.06,142.02,9.44]
[1723963996497,15.51,142.06,142.03,1.40787325]
[1723963996704,15.51,142.06,141.99,7.58148621]
[1723963997007,6.5284,142.07,142.0,72.83241169]
[1723963997178,0.12549,142.09,142.0,66.6587897]
[1723963997384,15.5767,142.1,142.01,6.17204233]
[1723963997678,15.5767,142.1,142.02,66.53315755]
[1723963997889,15.5767,142.1,142.05,9.44]
[1723963998193,15.5767,142.1,142.06,1.40766996]
[1723963999795,15.5767,142.1,142.05,9.44]
[1723964004313,15.5767,142.1,142.02,20.0]
[1723964004512,15.5767,142.1,142.01,20.0]
[1723964004718,15.5767,142.1,142.0,26.42279353]
[1723964005012,15.5767,142.1,142.01,45.0]
[1723964005215,15.5767,142.1,142.03,9.44]
[1723964006691,15.5767,142.1,142.05,9.44]
[1723964015640,15.5767,142.1,142.03,9.44]
[1723964016935,0.12549,142.09,142.01,9.44]
[1723964017232,0.12549,142.07,142.01,9.44]
[1723964017409,16.5401,142.06,142.01,9.44]
[1723964021304,16.5401,142.06,141.98,31.45486692]
[1723964021536,0.12549,142.05,141.99,20.0]
[1723964021713,0.12549,142.05,141.98,9.44]
[1723964021714,6.5427,142.04,141.98,9.44]
[1723964024325,6.5427,142.04,142.0,9.44]
[1723964026130,16.5401,142.06,142.02,9.44]
[1723964026323,16.5401,142.06,142.03,1.40797007]
[1723964029938,6.5427,142.08,142.04,10.84787914]
[1723964030116,6.5427,142.08,142.05,1.40771855]
[1723964030523,6.5427,142.08,142.04,9.44]
[1723964032436,6.5427,142.08,142.05,1.40776362]
[1723964032932,6.5427,142.08,142.04,9.44]
[1723964035036,6.5427,142.08,142.05,1.40770512]
[1723964035229,6.5427,142.08,142.04,9.44]
[1723964040544,6.5427,142.08,142.02,15.60802413]
[1723964040739,6.5427,142.08,142.03,6.16802413]
[1723964041138,6.5427,142.08,142.02,9.44]
[1723964041342,6.5427,142.08,142.03,6.16916315]
[1723964041542,6.5427,142.08,142.02,9.44]
[1723964041745,6.5427,142.08,142.03,6.16897276]
[1723964041928,6.5427,142.08,142.02,9.44]
[1723964042241,6.5427,142.08,142.03,6.16888927]
[1723964042460,6.5427,142.08,142.02,9.44]
[1723964042631,6.5427,142.08,142.03,6.1688999]
[1723964042830,6.5427,142.08,142.02,9.44]
[1723964043060,6.5427,142.08,142.03,6.16888927]
[1723964043243,6.5427,142.08,142.02,9.44]
[1723964043438,6.5427,142.08,142.03,6.16885362]
[1723964043642,6.5427,142.08,142.02,9.44]
[1723964043843,6.5427,142.08,142.03,6.16898269]
[1723964044046,6.5427,142.08,142.02,9.44]
[1723964044238,6.5427,142.08,142.03,6.17092631]
[1723964044437,6.5427,142.08,142.02,9.44]
[1723964044651,6.5427,142.08,142.03,6.17175637]
[1723964044952,6.5427,142.08,142.02,9.44]
[1723964045243,6.5427,142.08,142.03,6.17188563]
[1723964045453,6.5427,142.08,142.02,9.44]
[1723964045666,6.5427,142.08,142.03,6.17197389]
[1723964045961,6.5427,142.08,142.04,10.84786676]
[1723964046162,6.5427,142.08,142.05,1.40764775]
[1723964048543,6.5427,142.08,142.04,9.44]
[1723964048937,6.5427,142.08,141.99,0.12549]
[1723964049139,6.5427,142.08,142.0,6.17317375]
[1723964049434,6.5427,142.08,142.01,26.17317375]
[1723964049645,6.5427,142.08,142.02,15.61317375]
[1723964049846,6.5427,142.08,142.03,6.17317375]
[1723964050052,6.5427,142.08,142.02,9.44]
[1723964050332,6.5427,142.08,142.03,6.17267186]
[1723964050566,6.5427,142.08,142.02,9.44]
[1723964050738,6.5427,142.08,142.03,6.17269576]
[1723964050937,6.5427,142.08,142.02,9.44]
[1723964051139,6.5427,142.08,142.03,6.17269576]
[1723964051357,6.5427,142.08,142.02,9.44]
[1723964051561,6.5427,142.08,142.03,6.17268515]
[1723964051859,6.5427,142.08,142.02,9.44]
[1723964052034,6.5427,142.08,142.03,6.17282979]
[1723964052238,6.5427,142.08,142.02,9.44]
[1723964052440,6.5427,142.08,142.03,6.17286194]
[1723964052645,6.5427,142.08,142.02,9.44]
[1723964052839,6.5427,142.08,142.03,6.17283875]
[1723964053039,6.5427,142.08,142.02,9.44]
[1723964053443,6.5427,142.08,142.03,6.17278579]
[1723964053755,6.5427,142.08,142.02,9.44]
[1723964054067,6.5427,142.08,142.03,6.17279837]
[1723964054256,6.5427,142.08,142.02,9.44]
[1723964054438,6.5427,142.08,142.03,6.1728066]
[1723964054637,6.5427,142.08,142.02,9.44]
[1723964054842,6.5427,142.08,142.04,9.44]
[1723964063081,16.5401,142.09,142.04,9.44]
[1723964063082,16.5401,142.09,142.05,1.40769991]
[1723964063242,16.5401,142.09,142.04,6.17627067]
[1723964063445,16.5401,142.09,142.0,6.17627067]
[1723964063747,16.5401,142.09,141.99,20.37647]
[1723964063748,16.5401,142.09,142.01,26.17627067]
[1723964063943,16.5401,142.09,142.02,6.17627067]
[1723964064264,16.5401,142.09,142.03,35.61627067]
[1723964064565,16.5401,142.09,142.04,6.17627067]
[1723964065284,16.5401,142.09,142.03,9.44]
[1723964065444,16.5401,142.09,142.04,6.17866817]
[1723964065644,16.5401,142.09,142.03,9.44]
[1723964065958,16.5401,142.09,142.05,9.44]
[1723964068966,16.5401,142.09,142.04,6.17857407]
[1723964069279,6.4565,142.07,142.0,9.44]
[1723964069484,6.4565,142.07,142.01,26.17946617]
[1723964069663,6.4565,142.07,142.02,6.17946617]
[1723964069867,6.4565,142.07,142.03,6.17946617]
[1723964070068,6.4565,142.07,142.01,20.0]
[1723964070258,6.4565,142.07,142.02,6.18042512]
[1723964070459,6.4565,142.07,142.03,6.18042512]
[1723964070781,6.4565,142.07,142.02,9.44]
[1723964070983,6.4565,142.07,142.03,6.18050757]
[1723964071166,6.4565,142.07,142.02,9.44]
[1723964071368,6.4565,142.07,142.03,6.1807358]
[1723964071584,6.4565,142.07,142.02,9.44]
[1723964071758,6.4565,142.07,142.03,6.18074306]
[1723964071955,6.4565,142.07,142.02,9.44]
[1723964072185,6.4565,142.07,142.03,6.18075799]
[1723964072376,6.4565,142.07,142.02,9.44]
[1723964072574,6.4565,142.07,142.03,6.18077666]
[1723964072870,6.4565,142.07,142.02,9.44]
[1723964073173,6.4565,142.07,142.03,6.18126434]
[1723964073374,6.4565,142.07,142.02,9.44]
[1723964073683,6.4565,142.07,142.03,6.18120972]
[1723964073886,6.4565,142.07,142.02,9.44]
[1723964074097,6.4565,142.07,142.03,6.18131685]
[1723964074381,6.4565,142.07,142.02,9.44]
[1723964074589,6.4565,142.07,142.03,6.18130637]
[1723964074773,6.4565,142.07,142.02,9.44]